bitfinex/quotes_SOLUSD_20240825
["timestamp","ask_amount","ask_price","bid_price","bid_amount"]
[1724564614648,45.0,158.82,158.76,20.0]
[1724564614865,45.0,158.82,158.73,20.0]
[1724564615165,45.0,158.82,158.74,2.64357872]
[1724564615375,45.0,158.82,158.75,4.34873629]
[1724564615682,45.0,158.82,158.76,2.64357872]
[1724564615847,45.0,158.82,158.76,20.0]
[1724564616252,45.0,158.82,158.73,7.11020616]
[1724564616459,45.0,158.82,158.74,24.34893073]
[1724564616658,45.0,158.82,158.75,4.34893073]
[1724564616857,45.0,158.82,158.74,4.34893073]
[1724564617057,45.0,158.82,158.75,4.34893073]
[1724564617257,45.0,158.82,158.74,4.34893073]
[1724564617456,45.0,158.82,158.75,4.34893073]
[1724564617644,45.0,158.82,158.73,20.0]
[1724564617864,45.0,158.82,158.74,4.34895779]
[1724564618174,45.0,158.82,158.75,4.34895779]
[1724564618366,45.0,158.82,158.73,27.1106074]
[1724564618677,45.0,158.82,158.74,4.34898109]
[1724564618867,45.0,158.82,158.75,4.34898109]
[1724564619171,51.2964,158.82,158.74,7.1106074]
[1724564619476,9.71543144,158.81,158.75,4.3489815]
[1724564619670,45.0,158.8,158.74,7.1106074]
[1724564619872,45.0,158.8,158.75,4.3489815]
[1724564620079,45.0,158.8,158.74,7.1106074]
[1724564620378,45.0,158.8,158.75,4.34898232]
[1724564620676,45.0,158.8,158.76,4.34898232]
[1724564620876,45.0,158.8,158.74,7.1106074]
[1724564621062,45.0,158.8,158.75,4.34895738]
[1724564621248,45.0,158.8,158.76,4.34895738]
[1724564621452,45.0,158.8,158.74,7.1106074]
[1724564621652,45.0,158.8,158.75,11.45958972]
[1724564621883,45.0,158.8,158.76,4.34898232]
[1724564622179,45.0,158.8,158.73,20.0]
[1724564622351,45.0,158.8,158.74,4.34945181]
[1724564622555,45.0,158.8,158.73,20.0]
[1724564622759,45.0,158.8,158.74,4.3494514]
[1724564622958,45.0,158.8,158.75,4.3494514]
[1724564623159,45.0,158.8,158.73,20.0]
[1724564623482,45.0,158.8,158.74,4.34936868]
[1724564623665,45.0,158.8,158.75,4.34936868]
[1724564623865,45.0,158.8,158.73,20.0]
[1724564624085,45.0,158.8,158.73,27.11072735]
[1724564624377,45.0,158.8,158.74,7.11072735]
[1724564624562,45.0,158.8,158.75,4.34905427]
[1724564624775,45.0,158.8,158.76,4.34905427]
[1724564624959,45.0,158.8,158.75,7.11063365]
[1724564625160,45.0,158.8,158.76,4.34892392]
[1724564625383,45.0,158.8,158.75,7.11063365]
[1724564625568,45.0,158.8,158.76,4.34892392]
[1724564625754,45.0,158.8,158.75,7.11063365]
[1724564625955,45.0,158.8,158.76,4.34893032]
[1724564626161,45.0,158.8,158.75,7.11063365]
[1724564626361,45.0,158.8,158.76,4.34893032]
[1724564626582,45.0,158.8,158.75,7.11063365]
[1724564626879,45.0,158.8,158.76,4.34893073]
[1724564627259,45.0,158.8,158.75,7.11052486]
[1724564627459,45.0,158.8,158.76,4.34893073]
[1724564627683,45.0,158.8,158.75,7.11052486]
[1724564627882,45.0,158.8,158.76,4.34893073]
[1724564628185,45.0,158.8,158.75,7.11052486]
[1724564628377,45.0,158.8,158.76,4.34893073]
[1724564628553,45.0,158.8,158.75,7.11052486]
[1724564628760,45.0,158.8,158.74,7.11052486]
[1724564628960,45.0,158.8,158.75,4.34914928]
[1724564629292,45.0,158.81,158.76,4.34914928]
[1724564629460,45.0,158.81,158.74,7.11052486]
[1724564629777,45.0,158.81,158.75,7.11052486]
[1724564629972,45.0,158.81,158.73,29.71543144]
[1724564630280,45.0,158.81,158.74,7.11052419]
[1724564630697,45.0,158.81,158.75,7.11052419]
[1724564630983,45.0,158.81,158.73,29.71543144]
[1724564630984,45.0,158.81,158.74,7.11052419]
[1724564631205,45.0,158.81,158.75,7.11052419]
[1724564631562,45.0,158.82,158.74,7.11052419]
[1724564631881,45.0,158.82,158.75,7.11052419]
[1724564632086,45.0,158.82,158.74,7.11052419]
[1724564632385,45.0,158.82,158.75,7.11052419]
[1724564632588,45.0,158.82,158.73,20.0]
[1724564632892,45.0,158.82,158.74,7.11020862]
[1724564633260,45.0,158.82,158.75,7.11016842]
[1724564633461,45.0,158.82,158.73,29.71543144]
[1724564633889,45.0,158.82,158.74,7.1102044]
[1724564634090,45.0,158.82,158.73,29.71543144]
[1724564634260,45.0,158.82,158.73,20.0]
[1724564634584,25.67413144,158.81,158.73,20.0]
[1724564634891,45.0,158.8,158.73,20.0]
[1724564651482,45.0,158.8,158.74,1.25963963]
[1724564653610,45.0,158.8,158.74,10.97507107]
[1724564653810,6.4628,158.84,158.78,9.71543144]
[1724564654182,6.4628,158.84,158.76,9.71543144]
[1724564656117,6.4628,158.84,158.77,1.57628804]
[1724564656286,6.4628,158.84,158.78,6.26135987]
[1724564656618,6.4628,158.84,158.79,6.26135987]
[1724564656915,6.4628,158.84,158.8,1.57628804]
[1724564657110,6.4628,158.84,158.76,9.71543144]
[1724564657111,6.4628,158.84,158.81,1.57628804]
[1724564657282,6.4628,158.84,158.82,1.57628804]
[1724564657485,6.4628,158.84,158.78,4.68507009]
[1724564657718,6.4628,158.84,158.79,6.26134841]
[1724564657904,6.4628,158.84,158.8,1.57627832]
[1724564658104,6.4628,158.84,158.81,1.57627832]
[1724564658305,6.4628,158.84,158.82,1.57627832]
[1724564658501,6.4628,158.84,158.79,4.6850505]
[1724564658705,6.4628,158.84,158.8,1.57626916]
[1724564658903,6.4628,158.84,158.81,1.57626916]
[1724564659221,6.4628,158.84,158.82,1.57626916]
[1724564659396,6.4628,158.84,158.77,20.0]
[1724564659717,6.4628,158.84,158.78,6.26121566]
[1724564659919,6.4628,158.84,158.79,6.26121566]
[1724564660113,6.4628,158.84,158.8,1.57625053]
[1724564660292,6.4628,158.84,158.81,1.57625053]
[1724564660628,6.4628,158.84,158.82,1.57625053]
[1724564660797,6.4628,158.84,158.79,4.6849263]
[1724564661120,6.4628,158.84,158.8,1.57625045]
[1724564661310,6.4628,158.84,158.81,1.57625045]
[1724564661514,6.4628,158.84,158.82,1.57625045]
[1724564661704,6.4628,158.84,158.78,9.71543144]
[1724564662015,6.4628,158.84,158.79,1.57624177]
[1724564662216,6.4628,158.84,158.8,1.57624177]
[1724564662416,6.4628,158.84,158.81,1.57624177]
[1724564662717,6.4628,158.84,158.82,1.57624177]
[1724564662918,6.56516466,158.87,158.8,9.71543144]
[1724564663107,6.1754,158.88,158.81,27.51887071]
[1724564663294,6.1754,158.88,158.82,6.25975136]
[1724564663493,6.1754,158.88,158.83,1.57604758]
[1724564663719,6.1754,158.88,158.81,21.25911935]
[1724564663720,6.1754,158.88,158.84,1.57604758]
[1724564663934,6.1754,158.88,158.85,1.57604758]
[1724564664101,6.1754,158.88,158.82,1.25914379]
[1724564664417,6.1754,158.88,158.83,1.57583151]
[1724564664720,45.0,158.87,158.84,1.57583151]
[1724564664899,45.0,158.87,158.85,1.57583151]
[1724564665101,45.0,158.87,158.82,1.25914379]
[1724564665307,45.0,158.87,158.83,1.5758308]
[1724564665601,45.0,158.87,158.84,1.5758308]
[1724564665795,45.0,158.87,158.81,4.68335047]
[1724564665996,45.0,158.87,158.82,1.57584017]
[1724564666210,51.2944,158.87,158.83,1.57584017]
[1724564666415,51.2944,158.87,158.84,1.57584017]
[1724564666608,51.2944,158.87,158.8,14.39878191]
[1724564666807,51.2944,158.87,158.81,1.57587763]
[1724564667009,51.2944,158.87,158.82,1.57587763]
[1724564667325,51.2944,158.87,158.83,1.57587763]
[1724564667510,51.2944,158.87,158.84,1.57586833]
[1724564667822,51.2944,158.87,158.8,9.71543144]
[1724564668001,51.2944,158.87,158.81,1.57586873]
[1724564668205,51.2944,158.87,158.82,1.57586873]
[1724564668519,51.2944,158.87,158.83,1.57586873]
[1724564668731,51.2944,158.87,158.8,9.71543144]
[1724564668912,51.2944,158.87,158.81,1.57586873]
[1724564669114,45.0,158.87,158.82,1.57586873]
[1724564669315,45.0,158.87,158.83,1.57586873]
[1724564669513,45.0,158.87,158.8,9.71543144]
[1724564669714,45.0,158.87,158.81,1.57586873]
[1724564669920,45.0,158.87,158.82,1.57586873]
[1724564670123,45.0,158.87,158.83,1.57586873]
[1724564670430,45.0,158.87,158.8,9.71543144]
[1724564670827,45.0,158.87,158.81,1.57586873]
[1724564671138,45.0,158.87,158.82,1.57586858]
[1724564671340,51.2945,158.87,158.83,1.57586858]
[1724564671504,51.2945,158.87,158.79,20.0]
[1724564672015,51.2945,158.87,158.8,1.57586888]
[1724564672218,51.2945,158.87,158.81,1.57586888]
[1724564672433,45.0,158.87,158.82,1.57586888]
[1724564672610,45.0,158.87,158.83,1.57586888]
[1724564672807,45.0,158.87,158.79,20.0]
[1724564673011,45.0,158.87,158.8,1.57586888]
[1724564673308,45.0,158.87,158.81,1.57586888]
[1724564673516,45.0,158.87,158.82,1.57586888]
[1724564673735,45.0,158.87,158.83,1.57586888]
[1724564674024,45.0,158.87,158.79,20.0]
[1724564674335,45.0,158.87,158.8,1.57586006]
[1724564674541,45.0,158.87,158.81,1.57586006]
[1724564674716,45.0,158.87,158.82,1.57586006]
[1724564674917,45.0,158.87,158.83,1.57586006]
[1724564675118,45.0,158.87,158.79,20.0]
[1724564675332,45.0,158.87,158.8,1.57586888]
[1724564675626,45.0,158.87,158.81,1.57586888]
[1724564675826,45.0,158.87,158.82,1.57586888]
[1724564676012,45.0,158.87,158.83,1.57586888]
[1724564676209,45.0,158.87,158.8,2.64221808]
[1724564676404,45.0,158.87,158.81,1.57586828]
[1724564676609,45.0,158.87,158.82,1.57586828]
[1724564676829,45.0,158.87,158.83,1.57585961]
[1724564677019,45.0,158.87,158.8,2.64221808]
[1724564677215,61.00993144,158.87,158.81,1.57585991]
[1724564677413,16.497,158.86,158.78,20.0]
[1724564677711,6.4571,158.84,158.74,29.71543144]
[1724564677920,45.0,158.83,158.75,4.21936383]
[1724564678113,45.0,158.83,158.76,4.21936383]
[1724564678335,54.71543144,158.83,158.77,1.57623697]
[1724564678642,54.71543144,158.83,158.78,1.57623697]
[1724564678935,54.71543144,158.83,158.74,29.71543144]
[1724564679134,54.71543144,158.83,158.75,1.57630843]
[1724564679334,54.71543144,158.83,158.76,1.57630843]
[1724564679538,54.71543144,158.83,158.77,1.57630843]
[1724564679750,54.71543144,158.83,158.78,1.57630843]
[1724564679949,54.71543144,158.83,158.74,29.71543144]
[1724564680161,54.71543144,158.83,158.73,16.2194]
[1724564680162,6.2964,158.82,158.75,1.57633657]
[1724564680339,6.2964,158.82,158.73,16.2194]
[1724564680340,45.0,158.81,158.73,25.93483144]
[1724564680527,45.0,158.81,158.76,1.57651303]
[1724564680720,45.0,158.81,158.73,9.71543144]
[1724564681122,45.0,158.81,158.74,1.57648951]
[1724564681432,45.0,158.81,158.75,1.57648951]
[1724564681638,45.0,158.81,158.76,1.57648951]
[1724564681844,45.0,158.81,158.77,1.57648951]
[1724564682056,45.0,158.81,158.73,9.71543144]
[1724564682342,45.0,158.81,158.74,21.57649847]
[1724564682556,45.0,158.81,158.75,1.57649847]
[1724564682722,45.0,158.81,158.76,1.57649847]
[1724564682922,45.0,158.81,158.74,20.0]
[1724564683137,45.0,158.81,158.75,1.57649764]
[1724564683344,45.0,158.81,158.76,1.57649764]
[1724564683658,45.0,158.81,158.74,20.0]
[1724564684031,45.0,158.81,158.75,1.57649783]
[1724564684235,45.0,158.81,158.76,1.57649783]
[1724564684437,45.0,158.81,158.74,20.0]
[1724564684633,45.0,158.81,158.75,1.57649733]
[1724564684824,45.0,158.81,158.76,1.57649733]
[1724564685154,45.0,158.81,158.74,20.0]
[1724564685444,45.0,158.81,158.75,1.57649733]
[1724564685641,45.0,158.81,158.76,1.57649733]
[1724564685939,45.0,158.81,158.74,20.0]
[1724564686135,45.0,158.81,158.75,1.57649733]
[1724564686452,45.0,158.81,158.76,1.57649733]
[1724564686635,45.0,158.81,158.77,1.57649733]
[1724564686946,6.4571,158.8,158.74,20.0]
[1724564687153,45.0,158.79,158.75,1.57655031]
[1724564687354,45.0,158.79,158.76,1.57655031]
[1724564687524,45.0,158.79,158.72,20.0]
[1724564687731,45.0,158.79,158.73,1.57658576]
[1724564687947,45.0,158.79,158.74,1.57658576]
[1724564688153,45.0,158.79,158.75,1.57658576]
[1724564688353,45.0,158.79,158.72,20.0]
[1724564688548,45.0,158.79,158.73,1.57658685]
[1724564688846,45.0,158.79,158.74,1.57658685]
[1724564689151,45.0,158.79,158.75,1.57658685]
[1724564689355,45.0,158.79,158.72,21.25983076]
[1724564689540,45.0,158.79,158.73,1.57658805]
[1724564689861,45.0,158.79,158.74,1.57658805]
[1724564690030,45.0,158.79,158.75,1.57658805]
[1724564690355,45.0,158.79,158.72,21.25983076]
[1724564690664,45.0,158.79,158.73,1.57663433]
[1724564690947,45.0,158.79,158.74,1.57663433]
[1724564691127,45.0,158.79,158.75,1.57663433]
[1724564691328,45.0,158.79,158.72,21.25983076]
[1724564691560,45.0,158.79,158.73,1.57661502]
[1724564691864,45.0,158.79,158.74,1.5766243]
[1724564692155,45.0,158.79,158.75,1.5766243]
[1724564692357,45.0,158.79,158.72,21.25983076]
[1724564692654,45.0,158.79,158.73,1.5766255]
[1724564692834,45.0,158.79,158.74,1.5766255]
[1724564693035,45.0,158.79,158.75,1.5766255]
[1724564693351,45.0,158.79,158.72,20.0]
[1724564693535,45.0,158.79,158.73,1.57661622]
[1724564693735,45.0,158.79,158.74,1.57661622]
[1724564693935,45.0,158.79,158.75,1.57661622]
[1724564694135,45.0,158.79,158.72,20.0]
[1724564694334,45.0,158.79,158.73,1.57662505]
[1724564694536,45.0,158.79,158.74,1.57662505]
[1724564694737,45.0,158.79,158.75,1.57662505]
[1724564694936,45.0,158.79,158.72,20.0]
[1724564695157,45.0,158.79,158.73,1.57662671]
[1724564695450,45.0,158.79,158.74,1.57662671]
[1724564695646,45.0,158.79,158.75,1.57662671]
[1724564695831,45.0,158.79,158.72,20.0]
[1724564696031,45.0,158.79,158.73,1.57662449]
[1724564696229,45.0,158.79,158.74,1.57662449]
[1724564696434,45.0,158.79,158.71,20.0]
[1724564696629,45.0,158.79,158.75,1.57662526]
[1724564696861,45.0,158.79,158.71,20.0]
[1724564697062,45.0,158.79,158.72,1.57661688]
[1724564697239,45.0,158.79,158.73,1.57661688]
[1724564697437,45.0,158.79,158.74,1.57661688]
[1724564697641,45.0,158.79,158.75,1.57661688]
[1724564697940,45.0,158.79,158.71,9.71543144]
[1724564698135,45.0,158.79,158.72,20.0]
[1724564698942,45.0,158.79,158.71,20.0]
[1724564699444,16.2199,158.78,158.71,20.0]
[1724564699648,16.2199,158.78,158.69,10.54053114]
[1724564699649,45.0,158.77,158.69,10.54053114]
[1724564699955,45.0,158.77,158.7,20.0]
[1724564700138,45.0,158.77,158.71,4.34940902]
[1724564700346,45.0,158.77,158.7,20.0]
[1724564700859,45.0,158.77,158.71,9.71543144]
[1724564705365,45.0,158.77,158.7,20.0]
[1724564705571,45.0,158.77,158.69,10.54053114]
[1724564705751,16.05613144,158.76,158.69,0.8250997]
[1724564705950,45.0,158.75,158.69,0.8250997]
[1724564706155,51.2992,158.75,158.69,0.8250997]
[1724564706351,25.91813144,158.74,158.69,0.8250997]
[1724564706548,45.0,158.73,158.69,0.8250997]
[1724564716760,16.2027,158.74,158.69,0.8250997]
[1724564722260,6.3407,158.76,158.69,20.8250997]
[1724564722964,45.0,158.75,158.69,0.8250997]
[1724564723590,45.0,158.75,158.69,20.8250997]
[1724564724265,6.3407,158.76,158.7,9.71543144]
[1724564724857,23.19041166,158.83,158.8,88.99902397]
[1724564725062,9.71543144,158.81,158.8,88.99902397]
[1724564725270,54.71543144,158.81,158.8,88.99902397]
[1724564726600,61.01223144,158.81,158.8,88.99902397]
[1724564727979,79.78023144,158.81,158.8,88.99902397]
[1724564730695,86.34198049,158.81,158.8,88.99902397]
[1724564734296,76.62654905,158.81,158.8,88.99902397]
[1724564734491,86.34198049,158.81,158.8,88.99902397]
[1724564736703,12.85854905,158.81,158.8,88.99902397]
[1724564738097,57.85854905,158.81,158.8,88.99902397]
[1724564748921,51.56174905,158.81,158.8,88.99902397]
[1724564749207,57.85854905,158.81,158.8,88.99902397]
[1724564750109,57.85854905,158.81,158.75,15.5498]
[1724564750411,45.0,158.8,158.75,15.5498]
[1724564754203,45.0,158.8,158.75,31.85313144]
[1724564754804,45.0,158.8,158.75,22.1377]
[1724564758832,6.56174905,158.81,158.76,9.71543144]
[1724564759126,9.71543144,158.85,158.76,9.71543144]
[1724564759294,16.01093144,158.85,158.76,9.71543144]
[1724564759699,6.2956,158.84,158.77,2.64347559]
[1724564759899,6.2956,158.84,158.76,9.71543144]
[1724564760099,6.2956,158.84,158.77,2.64340918]
[1724564760313,45.0,158.83,158.76,9.71543144]
[1724564760617,45.0,158.83,158.77,2.64334251]
[1724564760917,45.0,158.83,158.75,22.1377]
[1724564761118,51.2961,158.83,158.75,22.1377]
[1724564762511,6.2964,158.82,158.75,22.1377]
[1724564762817,45.0,158.81,158.75,22.1377]
[1724564763318,51.2968,158.81,158.75,15.5498]
[1724564763521,61.01223144,158.81,158.75,15.5498]
[1724564766623,61.01223144,158.81,158.72,25.00153144]
[1724564766797,61.01223144,158.81,158.73,26.99360557]
[1724564767002,61.01223144,158.81,158.74,2.6441821]
[1724564767201,61.01223144,158.81,158.75,2.64420385]
[1724564767427,61.01223144,158.81,158.73,20.0]
[1724564767728,61.01223144,158.81,158.74,2.64420422]
[1724564768026,61.01223144,158.81,158.75,2.64420422]
[1724564768226,61.01223144,158.81,158.73,20.0]
[1724564768427,61.01223144,158.81,158.74,2.64420349]
[1724564768603,61.01223144,158.81,158.73,20.0]
[1724564768604,61.01223144,158.81,158.75,2.64420349]
[1724564768913,61.01223144,158.81,158.73,20.0]
[1724564769119,61.01223144,158.81,158.74,2.64420422]
[1724564769301,61.01223144,158.81,158.75,2.64420422]
[1724564769509,51.2968,158.81,158.73,20.0]
[1724564769708,51.2968,158.81,158.74,2.64420375]
[1724564769908,51.2968,158.81,158.75,2.64420375]
[1724564770209,51.2968,158.81,158.74,9.71543144]
[1724564770406,51.2968,158.81,158.75,2.64420339]
[1724564770626,51.2968,158.81,158.73,20.0]
[1724564770824,51.2968,158.81,158.73,30.97517173]
[1724564771028,45.0,158.81,158.75,9.71543144]
[1724564771216,12.5468,158.84,158.77,9.71543144]
[1724564771530,6.2952,158.85,158.78,3.90290281]
[1724564771726,6.2952,158.85,158.78,1.25942499]
[1724564772332,6.2952,158.85,158.79,2.64336359]
[1724564772631,6.2952,158.85,158.79,9.71543144]
[1724564772929,6.2952,158.85,158.8,1.2593065]
[1724564773910,6.2952,158.85,158.79,9.71543144]
[1724564774136,45.0,158.84,158.79,9.71543144]
[1724564776435,51.2957,158.84,158.77,15.2861]
[1724564776738,51.2957,158.84,158.78,2.64325064]
[1724564776921,51.2957,158.84,158.77,15.2861]
[1724564777232,51.2957,158.84,158.78,2.64325028]
[1724564777440,51.2957,158.84,158.77,25.00153144]
[1724564777640,51.2957,158.84,158.78,2.6432291]
[1724564777816,51.2957,158.84,158.77,25.00153144]
[1724564778016,51.2957,158.84,158.78,2.64322946]
[1724564778238,51.2957,158.84,158.77,25.00153144]
[1724564778538,51.2957,158.84,158.78,2.64325064]
[1724564778742,51.2957,158.84,158.77,25.00153144]
[1724564778914,51.2957,158.84,158.78,2.64325028]
[1724564779241,51.2957,158.84,158.77,25.00153144]
[1724564779417,51.2957,158.84,158.78,2.64325064]
[1724564782335,45.0,158.83,158.78,2.64329145]
[1724564782536,45.0,158.83,158.77,15.2861]
[1724564782846,45.0,158.83,158.78,2.6433161]
[1724564783020,45.0,158.83,158.77,15.2861]
[1724564783626,45.0,158.83,158.78,2.64329492]
[1724564783829,45.0,158.83,158.77,15.2861]
[1724564784031,45.0,158.83,158.78,2.64331898]
[1724564784230,45.0,158.83,158.77,15.2861]
[1724564784432,45.0,158.83,158.78,2.64334167]
[1724564784627,51.2961,158.83,158.77,15.2861]
[1724564784938,45.0,158.83,158.75,89.24497637]
[1724564785241,45.0,158.83,158.76,6.99195378]
[1724564785441,45.0,158.83,158.77,2.64340945]
[1724564785622,45.0,158.83,158.76,4.34854433]
[1724564785826,45.0,158.83,158.77,2.64340948]
[1724564786024,45.0,158.83,158.76,4.34854433]
[1724564786225,45.0,158.83,158.77,2.64341113]
[1724564786439,6.2964,158.82,158.76,4.34854542]
[1724564786644,45.0,158.81,158.77,2.64341077]
[1724564786840,45.0,158.81,158.76,4.34854542]
[1724564787140,45.0,158.81,158.77,2.64341185]
[1724564787348,45.0,158.81,158.76,4.34854542]
[1724564787640,45.0,158.81,158.75,89.24497637]
[1724564787847,45.0,158.81,158.76,2.64379373]
[1724564788035,45.0,158.81,158.75,89.24497637]
[1724564788339,45.0,158.81,158.76,2.64383537]
[1724564788546,45.0,158.81,158.75,89.24497637]
[1724564788921,45.0,158.81,158.76,2.64394163]
[1724564789122,45.0,158.81,158.75,89.24497637]
[1724564789339,45.0,158.81,158.76,2.64385655]
[1724564789625,45.0,158.81,158.75,89.24497637]
[1724564789856,45.0,158.81,158.76,2.64385655]
[1724564790023,45.0,158.81,158.75,89.24497637]
[1724564790359,6.2952,158.85,158.76,2.64385691]
[1724564790655,6.2952,158.85,158.77,13.61864463]
[1724564790839,19.26270331,158.87,158.79,9.71543144]
[1724564791039,19.26270331,158.87,158.8,1.25923876]
[1724564791742,6.2949,158.86,158.8,1.25923876]
[1724564792670,6.2949,158.86,158.79,10.97469382]
[1724564793136,45.0,158.85,158.79,10.97469382]
[1724564795068,45.0,158.85,158.8,2.64284292]
[1724564795361,45.0,158.85,158.79,10.97469382]
[1724564795560,45.0,158.85,158.8,2.64284256]
[1724564795760,45.0,158.85,158.78,16.3965]
[1724564795959,51.2954,158.85,158.79,2.64301263]
[1724564796162,51.2954,158.85,158.78,16.3965]
[1724564796672,51.2954,158.85,158.79,2.64303567]
[1724564796842,51.2954,158.85,158.78,16.3965]
[1724564797043,51.2954,158.85,158.78,17.65589749]
[1724564797247,51.2954,158.85,158.79,2.64303567]
[1724564797442,45.0,158.85,158.78,17.65589749]
[1724564797649,45.0,158.85,158.79,2.64292795]
[1724564797858,45.0,158.85,158.78,17.65589749]
[1724564798059,45.0,158.85,158.79,2.64292795]
[1724564798341,45.0,158.85,158.8,1.25927026]
[1724564798647,45.0,158.85,158.79,2.64293011]
[1724564798834,45.0,158.85,158.78,16.3965]
[1724564799039,45.0,158.85,158.79,2.64293083]
[1724564799239,45.0,158.85,158.78,16.3965]
[1724564799763,45.0,158.85,158.79,2.6428885]
[1724564800069,45.0,158.85,158.78,16.3965]
[1724564800361,45.0,158.85,158.79,2.64288813]
[1724564800564,45.0,158.85,158.79,1.25927052]
[1724564800769,45.0,158.85,158.8,1.25927061]
[1724564800946,19.26240331,158.87,158.8,1.25927061]
[1724564800947,45.0,158.86,158.8,1.25927061]
[1724564803366,45.0,158.86,158.79,9.71543144]
[1724564803670,45.0,158.86,158.8,3.90193127]
[1724564803968,45.0,158.86,158.8,1.25913446]
[1724564805565,45.0,158.86,158.81,9.71543144]
[1724564805770,6.56060331,158.87,158.82,1.25910958]
[1724564806071,16.19233144,158.91,158.82,1.25910958]
[1724564806262,45.0,158.9,158.82,1.25910958]
[1724564806771,19.10662995,158.92,158.83,24.76663144]
[1724564806951,6.2929,158.91,158.84,1.25891292]
[1724564808144,45.0,158.9,158.84,1.25891292]
[1724564810475,12.85233961,158.94,158.85,13.61572417]
[1724564810673,12.85233961,158.94,158.86,1.25867473]
[1724564810874,6.292,158.93,158.86,1.25867473]
[1724564811053,6.292,158.93,158.85,9.71543144]
[1724564811255,6.292,158.93,158.85,12.35685873]
[1724564811457,6.292,158.93,158.85,9.71543144]
[1724564811844,45.0,158.92,158.85,9.71543144]
[1724564812153,51.2924,158.92,158.83,24.76663144]
[1724564812469,51.2924,158.92,158.84,22.64144361]
[1724564812669,51.2924,158.92,158.84,20.0]
[1724564814463,51.2924,158.92,158.85,10.97421708]
[1724564814657,51.2924,158.92,158.86,1.25877209]
[1724564816684,45.0,158.92,158.86,1.25877209]
[1724564817089,51.2925,158.92,158.84,20.0]
[1724564817296,51.2925,158.92,158.84,29.71543144]
[1724564818173,51.2925,158.92,158.85,1.57553996]
[1724564818381,51.2925,158.92,158.86,1.57553996]
[1724564818566,51.2925,158.92,158.84,29.71543144]
[1724564818901,51.2925,158.92,158.85,1.57550471]
[1724564819086,51.2925,158.92,158.86,1.57550471]
[1724564819396,51.2925,158.92,158.84,29.71543144]
[1724564819565,51.2925,158.92,158.85,1.57551397]
[1724564819761,51.2925,158.92,158.86,1.57551397]
[1724564820071,51.2925,158.92,158.84,29.71543144]
[1724564820274,51.2925,158.92,158.85,1.57551397]
[1724564820473,51.2925,158.92,158.86,1.57551397]
[1724564820692,51.2925,158.92,158.84,29.71543144]
[1724564820894,51.2925,158.92,158.84,9.71543144]
[1724564821061,45.0,158.92,158.85,1.57551397]
[1724564821261,45.0,158.93,158.84,9.71543144]
[1724564821492,6.2929,158.91,158.85,1.57554907]
[1724564821789,51.2932,158.9,158.84,1.57563424]
[1724564821990,6.294,158.88,158.83,15.0512]
[1724564822294,45.0,158.87,158.83,15.0512]
[1724564828997,6.295,158.86,158.79,15.8603]
[1724564829298,45.0,158.85,158.79,15.8603]
[1724564830488,6.296,158.83,158.79,15.8603]
[1724564830697,45.0,158.82,158.79,15.8603]
[1724564832181,45.0,158.82,158.75,98.96040781]
[1724564832182,6.297,158.81,158.75,105.10527637]
[1724564832395,45.0,158.8,158.75,105.10527637]
[1724564832803,45.0,158.8,158.76,1.57652325]
[1724564832984,45.0,158.8,158.75,105.10527637]
[1724564833486,6.2972,158.8,158.75,105.10527637]
[1724564833706,45.0,158.79,158.75,105.10527637]
[1724564836907,45.0,158.79,158.75,89.24497637]
[1724564838514,6.2983,158.78,158.75,89.24497637]
[1724564838816,45.0,158.77,158.75,89.24497637]
[1724564842112,51.2985,158.77,158.75,89.24497637]
[1724564843211,6.2988,158.76,158.75,89.24497637]
[1724564843402,61.01423144,158.76,158.75,89.24497637]